bitfinex/quotes_BTCUSD_20220213
["timestamp","ask_amount","ask_price","bid_price","bid_amount"]
[1644766231964,0.29891907,42710.0,42709.0,0.06945181]
[1644766232409,0.29891907,42711.0,42709.0,0.06046753]
[1644766232809,0.29891907,42710.0,42709.0,0.06046753]
[1644766233414,0.117106,42718.0,42709.0,0.33382094]
[1644766233415,0.29939634,42712.0,42709.0,0.33382094]
[1644766233608,0.29939634,42712.0,42709.0,0.06046753]
[1644766234009,0.00047727,42712.0,42709.0,0.06046753]
[1644766234212,0.00047727,42712.0,42710.0,0.08635298]
[1644766234213,0.29891907,42712.0,42710.0,0.08635298]
[1644766234409,0.29891907,42712.0,42710.0,0.16857067]
[1644766234611,0.00047727,42713.0,42710.0,0.16857067]
[1644766234811,0.00047727,42713.0,42710.0,0.21857067]
[1644766235010,0.058552,42712.0,42710.0,0.21857067]
[1644766237161,0.00045586,42713.0,42710.0,0.21857067]
[1644766237962,0.25573925,42717.0,42713.0,0.07605921]
[1644766237963,0.29891907,42717.0,42713.0,0.07605921]
[1644766238161,0.00045586,42714.0,42713.0,0.07605921]
[1644766238360,0.00045586,42714.0,42710.0,0.21857067]
[1644766239161,0.058547,42714.0,42710.0,0.21857067]
[1644766239367,0.00045586,42714.0,42711.0,0.26784595]
[1644766239562,0.29891907,42718.0,42712.0,0.08635298]
[1644766239563,0.29437493,42718.0,42712.0,0.08635298]
[1644766239812,0.29437493,42718.0,42714.0,0.08784883]
[1644766240015,0.058545,42717.0,42712.0,0.16857067]
[1644766240212,0.058545,42716.0,42712.0,0.16857067]
[1644766241413,0.058542,42718.0,42712.0,0.16857067]
[1644766242412,0.058542,42718.0,42713.0,0.08766602]
[1644766242612,0.117086,42718.0,42713.0,0.08766602]
[1644766243214,0.058542,42718.0,42713.0,0.08766602]
[1644766244061,0.05868539,42718.0,42713.0,0.08766602]
[1644766244261,0.00014339,42718.0,42713.0,0.08766602]
[1644766244862,0.00014339,42718.0,42716.0,0.08221769]
[1644766245062,0.0103134,42719.0,42716.0,0.16857067]
[1644766245261,0.00047613,42718.0,42716.0,0.16857067]
[1644766246062,0.00041613,42718.0,42716.0,0.16857067]
[1644766246263,0.0103134,42719.0,42716.0,0.16857067]
[1644766246665,0.0102534,42719.0,42716.0,0.16857067]
[1644766247067,0.0101934,42719.0,42716.0,0.16857067]
[1644766247317,0.0101334,42719.0,42716.0,0.16857067]
[1644766247715,0.0686144,42719.0,42716.0,0.16857067]
[1644766247912,0.0100734,42719.0,42716.0,0.16857067]
[1644766249714,0.058542,42718.0,42716.0,0.16857067]
[1644766249919,0.053542,42718.0,42716.0,0.08635298]
[1644766250115,0.112087,42718.0,42713.0,0.00138488]
[1644766250323,0.0100734,42719.0,42713.0,0.00138488]
[1644766250324,0.0100734,42719.0,42717.0,0.16857067]
[1644766250516,0.0100734,42719.0,42718.0,0.27907787]
[1644766255216,0.0686134,42719.0,42718.0,0.27907787]
[1644766255418,0.30904596,42719.0,42718.0,0.27907787]
[1644766255613,0.35904596,42719.0,42718.0,0.44764854]
[1644766258215,0.35894596,42719.0,42718.0,0.44764854]
[1644766259565,0.68402726,42719.0,42718.0,0.44764854]
[1644766259863,0.75341707,42719.0,42718.0,0.44764854]
[1644766260064,0.42833577,42719.0,42718.0,0.44764854]
[1644766260269,0.35894596,42719.0,42718.0,0.44764854]
[1644766261269,0.43515959,42719.0,42718.0,0.44764854]
[1644766261970,0.35894596,42719.0,42718.0,0.44764854]
[1644766262210,0.35894596,42719.0,42718.0,0.44264854]
[1644766264312,0.1185134,42719.0,42718.0,0.44264854]
[1644766265211,0.30578466,42719.0,42718.0,0.44264854]
[1644766265815,0.37696556,42719.0,42718.0,0.44264854]
[1644766266272,0.1185134,42719.0,42718.0,0.44264854]
[1644766268476,0.1135134,42719.0,42718.0,0.44264854]
[1644766268876,0.06854,42719.0,42718.0,0.44264854]
[1644766272220,0.11854,42719.0,42718.0,0.2832696]
[1644766272520,0.46694784,42719.0,42718.0,0.2832696]
[1644766272719,0.46694784,42719.0,42710.0,0.05]
[1644766272720,0.058564,42717.0,42710.0,0.05]
[1644766272920,0.24885452,42713.0,42710.0,0.05]
[1644766273124,0.2306723,42711.0,42710.0,0.05]
[1644766273319,0.2806723,42711.0,42710.0,0.05]
[1644766274384,0.62906863,42711.0,42710.0,0.05]
[1644766274582,0.2806723,42711.0,42710.0,0.05]
[1644766274783,0.38004851,42711.0,42710.0,0.02600056]
[1644766275183,0.28004851,42711.0,42710.0,0.02600056]
[1644766275985,0.52897874,42711.0,42710.0,0.02600056]
[1644766276588,0.57878111,42711.0,42710.0,0.02600056]
[1644766276785,0.67878355,42711.0,42710.0,0.02600056]
[1644766277223,0.38004851,42711.0,42710.0,0.02600056]
[1644766279021,0.28004851,42711.0,42710.0,0.02600056]
[1644766279222,0.38004851,42711.0,42710.0,0.02600056]
[1644766280228,0.67844484,42711.0,42710.0,0.02600056]
[1644766280426,0.67844484,42711.0,42697.0,0.20911135]
[1644766280427,0.45,42710.0,42697.0,0.20911135]
[1644766280627,0.31631145,42702.0,42697.0,0.20911135]
[1644766280827,0.31631145,42702.0,42691.0,0.79740643]
[1644766280828,0.05,42701.0,42692.0,0.3]
[1644766281069,0.05,42701.0,42696.0,0.05]
[1644766281267,0.24916745,42701.0,42696.0,0.05]
[1644766281466,0.05,42701.0,42696.0,0.05]
[1644766281671,0.25773045,42704.0,42697.0,0.3]
[1644766281872,0.19916745,42709.0,42697.0,0.3]
[1644766282266,0.19916745,42709.0,42706.0,0.0760195]
[1644766282668,0.44373964,42711.0,42706.0,0.0760195]
[1644766282669,0.19916745,42708.0,42706.0,0.0760195]
[1644766282866,0.25772345,42708.0,42706.0,0.0760195]
[1644766283966,0.058556,42708.0,42706.0,0.0760195]
[1644766285016,0.25772345,42708.0,42706.0,0.0760195]
[1644766285216,0.19916745,42709.0,42707.0,0.28462468]
[1644766285415,0.058554,42710.0,42707.0,0.28462468]
[1644766285615,0.19916745,42710.0,42707.0,0.28462468]
[1644766285814,0.19916745,42710.0,42706.0,0.0760195]
[1644766286119,0.058556,42709.0,42706.0,0.0760195]
[1644766286315,0.19916745,42710.0,42706.0,0.0760195]
[1644766286720,0.19916745,42709.0,42704.0,0.05]
[1644766287617,0.37484245,42709.0,42704.0,0.05]
[1644766288018,0.25772745,42709.0,42704.0,0.05]
[1644766288468,0.19916745,42708.0,42704.0,0.05]
[1644766289270,0.31629345,42707.0,42704.0,0.05]
[1644766289469,0.19916745,42706.0,42704.0,0.05]
[1644766289768,0.29916745,42706.0,42704.0,0.05]
[1644766290769,0.35772945,42706.0,42704.0,0.05]
[1644766291368,0.25772945,42706.0,42704.0,0.05]
[1644766292519,0.50077076,42706.0,42704.0,0.05]
[1644766292918,0.25772945,42706.0,42704.0,0.05]
[1644766295023,0.058562,42706.0,42704.0,0.05]
[1644766295221,0.25772945,42706.0,42704.0,0.05]
[1644766295622,0.058562,42706.0,42704.0,0.05]
[1644766295821,0.07205879,42706.0,42704.0,0.05]
[1644766296469,0.27122624,42706.0,42704.0,0.05]
[1644766296868,0.19916745,42705.0,42704.0,0.05]
[1644766297868,0.32101811,42706.0,42704.0,0.02032956]
[1644766298067,0.19914925,42705.0,42704.0,0.02032956]
[1644766298467,0.32101811,42706.0,42704.0,0.02032956]
[1644766298867,0.07205879,42706.0,42704.0,0.02032956]
[1644766300615,0.19916879,42705.0,42704.0,0.02032956]
[1644766300815,0.19916879,42705.0,42704.0,0.01032956]
[1644766301018,0.25772879,42705.0,42703.0,0.00047672]
[1644766301218,0.25762879,42705.0,42703.0,0.00047672]
[1644766301621,0.25762879,42705.0,42699.0,0.07813296]
[1644766301820,0.25762879,42705.0,42702.0,0.00047673]
[1644766302619,0.19906879,42705.0,42702.0,0.00047673]
[1644766302819,0.19906879,42705.0,42699.0,0.07813296]
[1644766303019,0.19906879,42705.0,42701.0,0.00047511]
[1644766303475,0.01349679,42706.0,42701.0,0.00047511]
[1644766303875,0.01349679,42706.0,42704.0,1.71076375]
[1644766304478,0.01349679,42706.0,42701.0,0.00047511]
[1644766304677,0.01349679,42706.0,42702.0,0.23142733]
[1644766305077,0.01349679,42706.0,42703.0,0.26433764]
[1644766305277,0.01349679,42706.0,42702.0,0.23190244]
[1644766305678,0.01349679,42706.0,42703.0,0.27227674]
[1644766306077,0.01349679,42706.0,42702.0,0.23190244]
[1644766306277,0.01349679,42706.0,42702.0,0.23142733]
[1644766306478,0.01349679,42706.0,42702.0,0.2319028]
[1644766307515,0.01349679,42706.0,42702.0,0.23142733]
[1644766307715,0.01349679,42706.0,42702.0,0.2319028]
[1644766308819,0.01349679,42706.0,42702.0,0.23142733]
[1644766309118,0.01349679,42706.0,42702.0,0.2319028]
[1644766309315,0.01349679,42706.0,42702.0,0.00047547]
[1644766309921,0.01349679,42706.0,42700.0,0.34002258]
[1644766310119,0.01349679,42706.0,42702.0,0.00047539]
[1644766310520,0.01349679,42706.0,42700.0,0.28692428]
[1644766311176,0.01349679,42706.0,42696.0,0.27231707]
[1644766311375,0.19919703,42702.0,42694.0,0.3667]
[1644766311581,0.19919703,42702.0,42688.0,0.6662]
[1644766311582,0.19919703,42702.0,42692.0,0.26854627]
[1644766311775,0.19919703,42701.0,42692.0,0.26408898]
[1644766311975,0.44770357,42701.0,42692.0,0.00022225]
[1644766312181,0.44770357,42701.0,42691.0,0.3946]
[1644766312182,0.22154195,42697.0,42691.0,0.3946]
[1644766312376,0.22154195,42697.0,42690.0,0.00022225]
[1644766312576,0.22154195,42697.0,42689.0,0.28532145]
[1644766312779,0.19919703,42700.0,42689.0,0.28532145]
[1644766312979,0.24850654,42701.0,42689.0,0.28532145]
[1644766312980,0.44770357,42701.0,42689.0,0.28532145]
[1644766313176,0.058567,42699.0,42689.0,0.28532145]
[1644766313380,0.19919703,42701.0,42689.0,0.34388845]
[1644766313778,0.22862607,42699.0,42692.0,0.00050175]
[1644766314178,0.22862607,42699.0,42689.0,0.2808232]
[1644766314379,0.22862607,42699.0,42690.0,0.00023473]
[1644766315016,0.22862607,42699.0,42690.0,0.05879973]
[1644766315215,0.058565,42699.0,42690.0,0.058565]
[1644766315414,0.42457029,42700.0,42690.0,0.05879973]
[1644766315415,0.19919703,42700.0,42690.0,0.05879973]
[1644766315614,0.21118907,42701.0,42690.0,0.05879973]
[1644766315815,0.19919703,42700.0,42690.0,0.05879973]
[1644766316015,0.21118907,42701.0,42690.0,0.25475091]
[1644766316418,0.058563,42700.0,42690.0,0.31331391]
[1644766316620,0.25776003,42700.0,42690.0,0.31331391]
[1644766316818,0.25776003,42700.0,42692.0,0.058563]
[1644766317016,0.058563,42700.0,42693.0,0.26735686]
[1644766317217,0.21118907,42701.0,42693.0,0.26735686]
[1644766317618,0.058563,42700.0,42693.0,0.26735686]
[1644766317818,0.25776003,42700.0,42693.0,0.26735686]
[1644766318019,0.25776003,42700.0,42692.0,0.00023473]
[1644766318220,0.25776003,42700.0,42691.0,0.00023473]
[1644766318469,0.058563,42700.0,42690.0,0.25525069]
[1644766318671,0.00047967,42699.0,42690.0,0.05929951]
[1644766318869,0.00047967,42699.0,42690.0,0.00073651]
[1644766319071,0.05904567,42699.0,42690.0,0.00073651]
[1644766319469,0.058566,42699.0,42690.0,0.00023473]
[1644766319670,0.058566,42699.0,42690.0,0.00050178]
[1644766319869,0.05904565,42699.0,42690.0,0.00073651]
[1644766320271,0.05904565,42699.0,42690.0,0.05930251]
[1644766320671,0.058566,42699.0,42690.0,0.05880073]
[1644766320872,0.058566,42699.0,42690.0,0.05930251]
[1644766321176,0.05904565,42699.0,42690.0,0.05930251]
[1644766321372,0.11761365,42699.0,42690.0,0.05930251]
[1644766321672,0.058567,42698.0,42690.0,0.05930251]
[1644766321871,0.058567,42698.0,42690.0,0.05880073]
[1644766322071,0.058567,42698.0,42696.0,0.0727143]
[1644766322321,0.00047964,42699.0,42696.0,0.0727143]
[1644766323217,0.01199076,42700.0,42696.0,0.0727143]
[1644766323418,0.01247044,42700.0,42696.0,0.0727143]
[1644766323817,0.07103644,42700.0,42696.0,0.0727143]
[1644766324218,0.058566,42699.0,42696.0,0.0727143]
[1644766324721,0.01247044,42700.0,42696.0,0.0727143]
[1644766325320,0.0119882,42698.0,42696.0,0.0727143]
[1644766325521,0.0119882,42698.0,42691.0,0.00023473]
[1644766325720,0.0119882,42698.0,42691.0,0.19595118]
[1644766325977,0.0119882,42698.0,42691.0,0.19618591]
[1644766326178,0.26101,42696.0,42691.0,0.00023473]
[1644766326479,0.26101,42696.0,42690.0,0.33191779]
[1644766326678,0.26101,42696.0,42690.0,0.33165073]
[1644766326876,0.26101,42696.0,42690.0,0.33210946]
[1644766327077,0.26101,42696.0,42690.0,0.00069346]
[1644766327280,0.0119882,42698.0,42694.0,0.08515822]
[1644766328180,0.058568,42697.0,42694.0,0.08515822]
[1644766328380,0.31409754,42697.0,42694.0,0.08515822]
[1644766329185,0.31409754,42697.0,42691.0,0.00023473]
[1644766329486,0.05858,42694.0,42690.0,0.00069346]
[1644766329730,0.05858,42694.0,42690.0,0.00045873]
[1644766330324,0.05858,42694.0,42686.0,0.19618591]
[1644766330325,0.01198565,42696.0,42688.0,0.06394113]
[1644766330620,0.05857,42695.0,42690.0,0.00045872]
[1644766331423,0.19919703,42694.0,42690.0,0.00045872]
[1644766331621,0.19919703,42694.0,42682.0,0.19595118]
[1644766331622,0.298899,42693.0,42684.0,0.00023473]
[1644766331823,0.058581,42692.0,42690.0,0.00046163]
[1644766332020,0.28116399,42691.0,42690.0,0.00046163]
[1644766332221,0.058581,42692.0,42690.0,0.00046163]
[1644766332925,0.058581,42692.0,42689.0,0.00046164]
[1644766333780,0.117158,42692.0,42689.0,0.00046164]
[1644766333982,0.117158,42692.0,42685.0,0.00023473]
[1644766334180,0.117158,42692.0,42688.0,0.00046164]
[1644766334582,0.058581,42692.0,42688.0,0.00069637]
[1644766335181,0.058581,42692.0,42683.0,0.00023473]
[1644766335182,0.05858,42690.0,42683.0,0.00023473]
[1644766335382,0.05858,42690.0,42688.0,0.00046145]
[1644766335783,0.00858,42690.0,42688.0,0.00046145]
[1644766336286,0.067162,42690.0,42683.0,0.00023473]
[1644766336485,0.34060179,42689.0,42682.0,0.00023473]
[1644766336681,0.34060179,42689.0,42687.0,0.00046145]
[1644766336682,0.058584,42689.0,42687.0,0.00046145]
[1644766337318,0.058584,42689.0,42688.0,0.08767501]
[1644766337518,0.00126943,42691.0,42688.0,0.08767501]
[1644766337519,0.05984743,42691.0,42688.0,0.08767501]
[1644766337722,0.05984743,42691.0,42688.0,0.07290974]
[1644766338018,0.05984743,42691.0,42688.0,0.07267501]
[1644766339217,0.05984743,42691.0,42688.0,0.07290974]
[1644766339421,0.00126943,42691.0,42688.0,0.07290974]
[1644766340022,0.01078031,42689.0,42688.0,0.07290974]
[1644766340219,0.01078031,42689.0,42688.0,0.07267501]
[1644766340419,0.01078031,42689.0,42687.0,0.00069619]
[1644766340621,0.06936031,42689.0,42685.0,0.00023001]
[1644766340825,0.01078031,42689.0,42683.0,0.23330663]
[1644766341087,0.01078031,42689.0,42683.0,0.23307662]
[1644766341488,0.06936331,42689.0,42684.0,0.08930494]
[1644766341788,0.058582,42688.0,42684.0,0.08930494]
[1644766342588,0.058582,42688.0,42684.0,0.08962286]
[1644766343187,0.01078031,42689.0,42684.0,0.08962286]
[1644766343589,0.01078031,42689.0,42684.0,0.08930494]
[1644766343790,0.01078031,42689.0,42684.0,0.08962285]
[1644766344822,0.01078031,42689.0,42684.0,0.08930494]
[1644766344823,0.06936331,42689.0,42684.0,0.08930494]
[1644766345024,0.06936331,42689.0,42684.0,0.08976677]
[1644766345222,0.00126509,42687.0,42684.0,0.08976677]
[1644766345422,0.058585,42686.0,42684.0,0.08976677]
[1644766346025,0.058585,42686.0,42684.0,0.08930494]
[1644766349970,0.00126292,42685.0,42684.0,0.08930494]
[1644766351176,0.00126292,42685.0,42683.0,0.00023001]
[1644766351371,0.00126292,42685.0,42682.0,0.0006912]
[1644766351771,0.058587,42684.0,42682.0,0.0006912]
[1644766351971,0.058587,42684.0,42681.0,0.05023001]
[1644766352221,0.058587,42684.0,42681.0,0.05046119]
[1644766352817,0.117177,42684.0,42681.0,0.05046119]
[1644766353017,0.117177,42684.0,42681.0,0.0506912]
[1644766353218,0.058587,42684.0,42681.0,0.05023001]
[1644766354020,0.117175,42684.0,42681.0,0.05023001]
[1644766355724,0.05976972,42683.0,42681.0,0.05023001]
[1644766355969,0.05976972,42683.0,42681.0,0.05]
[1644766358070,0.05976972,42683.0,42681.0,0.12978464]
[1644766359071,0.05976972,42683.0,42681.0,0.05]
[1644766359275,0.35976972,42683.0,42681.0,0.05]
[1644766359475,0.15578263,42683.0,42681.0,0.05]
[1644766359723,0.15976972,42683.0,42681.0,0.05]
[1644766359921,0.05976972,42683.0,42681.0,0.05]
[1644766360119,0.05976972,42683.0,42682.0,0.08118801]
[1644766360524,0.01346014,42683.0,42682.0,0.41260401]
[1644766361521,0.01346014,42683.0,42682.0,0.08118801]
[1644766363775,0.07204914,42683.0,42682.0,0.08118801]
[1644766363972,0.01346014,42683.0,42682.0,0.08118801]
[1644766364173,0.01346014,42683.0,42682.0,0.35334407]
[1644766364569,0.01346014,42683.0,42682.0,0.3449346]
[1644766364971,0.01346014,42683.0,42682.0,0.08118801]
[1644766365575,0.01346014,42683.0,42682.0,0.34931926]
[1644766365874,0.01346014,42683.0,42682.0,0.08118801]
[1644766367075,0.01346014,42683.0,42681.0,0.05023001]
[1644766367327,0.01346014,42683.0,42681.0,0.05]
[1644766368725,0.01346014,42683.0,42681.0,0.12513335]
[1644766370627,0.01346014,42683.0,42682.0,0.07586144]
[1644766371668,0.01346014,42683.0,42675.0,0.179589]
[1644766372069,0.01346014,42683.0,42677.0,0.331416]
[1644766372669,0.01346014,42683.0,42678.0,0.00035705]
[1644766373068,0.01346014,42683.0,42681.0,0.07071444]
[1644766375819,0.01346014,42683.0,42679.0,0.0002355]
[1644766376021,0.00610903,42683.0,42678.0,0.0002355]
[1644766376220,0.00610903,42683.0,42678.0,0.00046885]
[1644766377222,0.00610903,42683.0,42679.0,0.331416]
[1644766377423,0.00610903,42683.0,42678.0,0.33188484]
[1644766377823,0.00610903,42683.0,42679.0,0.331416]
[1644766378024,0.00610903,42683.0,42679.0,0.40085896]
[1644766378223,0.00610903,42683.0,42679.0,0.06944296]
[1644766378768,0.00610903,42683.0,42675.0,0.47571961]
[1644766378769,0.00610903,42683.0,42678.0,0.00070434]
[1644766378968,0.00610903,42683.0,42678.0,0.00046884]
[1644766379671,0.00610903,42683.0,42676.0,0.0002355]
[1644766379870,0.00610903,42683.0,42679.0,0.06780594]
[1644766381372,0.00610903,42683.0,42680.0,0.331416]
[1644766381570,0.00610903,42683.0,42680.0,0.3316515]
[1644766381770,0.00610903,42683.0,42680.0,0.0002355]
[1644766381971,0.00610903,42683.0,42679.0,0.06804144]
[1644766382226,0.00610903,42683.0,42679.0,0.06780594]
[1644766382519,0.00610903,42683.0,42679.0,0.06804144]
[1644766382716,0.00610903,42683.0,42680.0,0.331416]
[1644766382918,0.00610903,42683.0,42680.0,0.3316515]
[1644766383115,0.00610903,42683.0,42680.0,0.0002355]
[1644766383318,0.00610903,42683.0,42680.0,0.331416]
[1644766383517,0.00610903,42683.0,42680.0,0.0002355]
[1644766383717,0.00610903,42683.0,42680.0,0.331416]
[1644766383920,0.00610903,42683.0,42680.0,0.0002355]
[1644766384119,0.00610903,42683.0,42682.0,0.331416]
[1644766384319,0.00610903,42683.0,42681.0,0.331416]
[1644766384918,0.00610903,42683.0,42682.0,0.331416]
[1644766385319,0.00610903,42683.0,42681.0,0.331416]
[1644766385519,0.00610903,42683.0,42680.0,0.0002355]
[1644766385719,0.00610903,42683.0,42679.0,0.26417405]
[1644766386172,0.00610903,42683.0,42679.0,0.06804144]
[1644766386372,0.00610903,42683.0,42679.0,0.18520644]
[1644766386673,0.00610903,42683.0,42681.0,0.331416]
[1644766386872,0.00610903,42683.0,42682.0,0.331416]
[1644766387073,0.00610903,42683.0,42679.0,0.18520644]
[1644766387277,0.00610903,42683.0,42680.0,0.0002355]
[1644766387473,0.00610903,42683.0,42679.0,0.06804144]
[1644766387673,0.00610903,42683.0,42679.0,0.06304144]
[1644766388676,0.00039389,42686.0,42680.0,0.331416]
[1644766388879,0.30048333,42693.0,42684.0,0.05]
[1644766388880,0.25066532,42693.0,42684.0,0.05]
[1644766389077,0.00157529,42693.0,42686.0,0.06575962]
[1644766389276,0.24909003,42698.0,42687.0,0.331416]
[1644766389474,0.30390804,42700.0,42687.0,0.331416]
[1644766389475,0.24909003,42699.0,42687.0,0.331416]
[1644766389728,0.005,42700.0,42695.0,0.22373723]
[1644766389729,0.25409003,42700.0,42695.0,0.22373723]
[1644766390033,0.005,42700.0,42695.0,0.28229823]
[1644766390818,0.005,42700.0,42696.0,0.058561]
[1644766391020,0.005,42700.0,42696.0,0.117116]
[1644766391220,0.005,42700.0,42697.0,0.08152882]
[1644766391424,0.005,42700.0,42698.0,0.331416]
[1644766392624,0.005,42700.0,42698.0,0.058554]
[1644766392821,0.005,42700.0,42699.0,0.331416]
[1644766393470,0.005,42700.0,42698.0,0.27575866]
[1644766394572,0.005,42700.0,42698.0,0.331416]
[1644766394773,0.005,42700.0,42699.0,0.331416]
[1644766394972,0.005,42700.0,42698.0,0.331416]
[1644766395176,0.005,42700.0,42696.0,0.058559]
[1644766395374,0.005,42700.0,42698.0,0.26744186]
[1644766395575,0.00910234,42700.0,42698.0,0.26744186]
[1644766396174,0.00910234,42700.0,42698.0,0.3428126]
[1644766397627,0.00910234,42700.0,42698.0,0.07537074]
[1644766398428,0.00910234,42700.0,42699.0,0.2706649]
[1644766399930,0.00863234,42700.0,42699.0,0.2706649]
[1644766400731,0.21859359,42708.0,42705.0,0.01087987]
[1644766401369,0.19905973,42710.0,42706.0,0.08698887]
[1644766401569,0.24909003,42712.0,42706.0,0.05172519]
[1644766401769,0.24909003,42712.0,42705.0,0.01087987]
[1644766401770,0.058556,42710.0,42705.0,0.01087987]
[1644766402170,0.058556,42708.0,42705.0,0.01087987]
[1644766402371,0.21150961,42707.0,42705.0,0.01087987]
[1644766405051,0.058555,42709.0,42705.0,0.01087987]
[1644766405255,0.0004799,42708.0,42705.0,0.01087987]
[1644766406152,0.21730677,42707.0,42705.0,0.01087987]
[1644766406353,0.058558,42706.0,42705.0,0.01087987]
[1644766407052,0.26158978,42706.0,42705.0,0.01087987]
[1644766407253,0.058558,42706.0,42705.0,0.01087987]
[1644766407452,0.00388624,42709.0,42705.0,0.01087987]
[1644766407655,0.0004799,42708.0,42705.0,0.01087987]
[1644766408571,0.058556,42708.0,42705.0,0.01087987]
[1644766408872,0.117113,42708.0,42705.0,0.01087987]
[1644766410574,0.06243876,42706.0,42705.0,0.01087987]
[1644766414224,0.00388176,42706.0,42705.0,0.01087987]
[1644766418971,0.22178758,42706.0,42705.0,0.01087987]
[1644766419571,0.27178758,42706.0,42705.0,0.01087987]
[1644766419837,0.27178758,42706.0,42694.0,0.1198]
[1644766419838,0.22836838,42696.0,42691.0,0.00050067]
[1644766420037,0.27836838,42696.0,42691.0,0.00050067]
[1644766420238,0.32836838,42696.0,42691.0,0.00050067]
[1644766420636,0.52743046,42696.0,42686.0,0.015]
[1644766420835,0.058583,42695.0,42686.0,0.015]
[1644766421634,0.058583,42695.0,42688.0,0.08211922]
[1644766421837,0.1,42696.0,42688.0,0.08211922]
[1644766422234,0.05,42695.0,42688.0,0.08211922]
[1644766422836,0.058569,42695.0,42688.0,0.08211922]
[1644766423135,0.058569,42695.0,42686.0,0.058572]
[1644766423136,0.108569,42695.0,42686.0,0.058572]
[1644766423336,0.26043928,42697.0,42686.0,0.058572]
[1644766424275,0.26043928,42697.0,42687.0,0.058568]
[1644766424473,0.26043928,42697.0,42689.0,0.05906706]
[1644766425274,0.26043928,42697.0,42689.0,0.058567]
[1644766425474,0.26043928,42697.0,42691.0,0.00050005]
[1644766425878,0.00386171,42695.0,42691.0,0.00050005]
[1644766426480,0.00386171,42695.0,42689.0,0.058567]
[1644766426676,0.00386171,42695.0,42691.0,0.00050005]
[1644766426977,0.00386171,42695.0,42692.0,0.07498028]
[1644766427227,0.00386171,42695.0,42691.0,0.00050005]
[1644766427827,0.00386171,42695.0,42683.0,0.77484382]
[1644766428026,0.00386171,42695.0,42691.0,0.00050005]
[1644766429031,0.00386171,42695.0,42686.0,0.07334589]
[1644766429228,0.00386171,42695.0,42691.0,0.00050005]
[1644766430827,0.36005892,42697.0,42696.0,0.23565129]
[1644766432680,0.55920367,42697.0,42696.0,0.23565129]
[1644766432879,0.25771875,42697.0,42696.0,0.23565129]
[1644766433481,0.25771875,42697.0,42696.0,0.3129577]
[1644766433681,0.058574,42697.0,42696.0,0.3129577]
[1644766434581,0.33900224,42697.0,42696.0,0.23565129]
[1644766434823,0.53814699,42697.0,42696.0,0.23565129]
[1644766435822,0.34265241,42697.0,42696.0,0.23565129]
[1644766437027,0.54179716,42697.0,42696.0,0.23565129]
[1644766446779,0.06222417,42697.0,42696.0,0.23565129]
[1644766447384,0.06222417,42697.0,42691.0,0.00045859]
[1644766447385,0.15234347,42692.0,42691.0,0.00045859]
[1644766447582,0.40136949,42692.0,42691.0,0.00045859]
[1644766447780,0.50137205,42692.0,42691.0,0.00045859]
[1644766448179,0.50137205,42692.0,42680.0,0.0002355]
[1644766448383,0.19005819,42685.0,42681.0,0.0702603]
[1644766448583,0.175764,42684.0,42681.0,0.0702603]
[1644766448783,0.175764,42684.0,42680.0,0.0002355]
[1644766448983,0.175764,42684.0,42679.0,0.25]
[1644766449184,0.058588,42684.0,42679.0,0.25]
[1644766449725,0.058588,42683.0,42679.0,0.25]
[1644766450124,0.27379009,42686.0,42679.0,0.25]
[1644766450523,0.28197074,42689.0,42679.0,0.25]
[1644766450723,0.05858,42688.0,42687.0,0.08465774]
[1644766451323,0.05858,42688.0,42681.0,0.0002355]
[1644766451324,0.11716,42688.0,42681.0,0.0002355]
[1644766451522,0.28646599,42687.0,42680.0,0.21204879]
[1644766451722,0.29309651,42690.0,42680.0,0.2115492]
[1644766451921,0.29309651,42690.0,42681.0,0.00049958]
[1644766452122,0.058581,42688.0,42681.0,0.00073508]
[1644766452321,0.058581,42688.0,42685.0,0.08019837]
[1644766452923,0.117162,42688.0,42682.0,0.0002355]
[1644766453123,0.058581,42688.0,42684.0,0.00049956]
[1644766453981,0.058583,42687.0,42684.0,0.0673454]
[1644766454180,0.058583,42687.0,42684.0,0.06684584]
[1644766454381,0.058583,42687.0,42684.0,0.0673454]
[1644766454983,0.058583,42687.0,42684.0,0.00049956]
[1644766455382,0.058583,42687.0,42680.0,0.0002355]
[1644766455583,0.117168,42687.0,42683.0,0.00049956]
[1644766455784,0.058584,42686.0,42683.0,0.00049956]
[1644766455984,0.058584,42686.0,42685.0,0.08392139]
[1644766456384,0.058584,42686.0,42683.0,0.00073506]
[1644766456584,0.058584,42686.0,42680.0,0.0002355]
[1644766456785,0.058584,42686.0,42679.0,0.2502355]
[1644766456984,0.058584,42686.0,42680.0,0.0002355]
[1644766457218,0.058584,42686.0,42679.0,0.2502355]
[1644766457825,0.058584,42686.0,42683.0,0.07592882]
[1644766459524,0.29673768,42690.0,42683.0,0.07616432]
[1644766460326,0.00408957,42686.0,42684.0,0.00049898]
[1644766460724,0.058585,42685.0,42683.0,0.03139412]
[1644766460975,0.058585,42685.0,42683.0,0.03115862]
[1644766463879,0.27239045,42684.0,42683.0,0.03115862]
[1644766464477,0.27239045,42684.0,42682.0,0.0007345]
[1644766464729,0.27239045,42684.0,42682.0,0.000499]
[1644766464730,0.058587,42683.0,42682.0,0.000499]
[1644766464925,0.12125957,42686.0,42680.0,0.0002355]
[1644766465124,0.12125957,42686.0,42680.0,0.00049901]
[1644766465326,0.12125957,42686.0,42680.0,0.00073451]
[1644766465725,0.12125957,42686.0,42680.0,0.0844188]
[1644766466126,0.058588,42684.0,42680.0,0.08391979]
[1644766466328,0.175762,42684.0,42681.0,0.000499]
[1644766466530,0.20884151,42683.0,42681.0,0.0007345]
[1644766466728,0.20884151,42683.0,42681.0,0.000499]
[1644766467329,0.058589,42682.0,42681.0,0.000499]
[1644766467531,0.058589,42682.0,42680.0,0.0002355]
[1644766467728,0.058589,42682.0,42679.0,0.25]
[1644766468973,0.54153536,42683.0,42679.0,0.2502355]
[1644766468974,0.48294636,42683.0,42679.0,0.2502355]
[1644766469471,0.4828142,42683.0,42679.0,0.2502355]
[1644766469873,0.20884151,42683.0,42679.0,0.2502355]
[1644766470074,0.20884151,42683.0,42679.0,0.25049844]
[1644766470275,0.058586,42684.0,42679.0,0.25049844]
[1644766470678,0.058588,42682.0,42679.0,0.25049844]
[1644766471074,0.058588,42682.0,42679.0,0.25]
[1644766471472,0.058588,42682.0,42679.0,0.2502355]
[1644766471674,0.117177,42682.0,42679.0,0.2502355]
[1644766472341,0.058589,42681.0,42679.0,0.2502355]
[1644766472637,0.27355209,42680.0,42679.0,0.25]
[1644766473136,0.53053656,42683.0,42679.0,0.25]
[1644766473338,0.058587,42682.0,42679.0,0.33623829]
[1644766473536,0.058587,42682.0,42679.0,0.33650123]